[Event "Super United Croatia GCT Rapid 2022"]
[Site "Zagreb"]
[Date "2022.07.21"]
[Round "5.3"]
[White "Dominguez Perez, Leinier"]
[Black "Topalov, Veselin"]
[Result "1/2-1/2"]
[ECO "B80"]
[WhiteElo "2754"]
[BlackElo "2728"]
[Annotator "TA"]
[PlyCount "71"]
[EventDate "2022.07.20"]
[EventType "tourn"]
[EventCountry "CRO"]
[SourceTitle "playchess.com"]
[Source "ChessBase"]
[SourceQuality "1"]
[TimeControl "1500+10"]

{[%evp 11,71,22,35,15,32,26,33,20,50,23,35,41,105,113,104,110,191,186,170,160,202,172,168,157,265,177,199,194,173,180,202,188,249,243,258,268,260,149,435,111,189,76,135,93,106,-157,-157,-143,12,12,18,0,0,0,0,0,0,0,0,0,0,0]} 1. e4 {[%emt 0:00:01]} c5 {[%emt 0:00:05]} 2. Nf3 {[%emt 0:00:02]} d6 {[%emt 0:00:01]} 3. d4 {[%emt 0:00:06]} cxd4 {[%emt 0:00:02]} 4. Nxd4 {[%emt 0:00:02]} Nf6 {[%emt 0:00:02]} 5. Nc3 {[%emt 0:00:02]} a6 {[%emt 0:00:02]} 6. Be3 {[%emt 0:00:39]} e6 {[%emt 0:00:04]} 7. a3 {[%emt 0:00:32] B80: Sicilian Scheveningen: 6 g3 and 6 Be3, including English Attack.} b5 {[%emt 0:02:49]} 8. g4 {[%emt 0:00:08][%cal Bg2g4,Bg4g5][%mdl 32]} Bb7 {[%emt 0:00:02]} 9. Bg2 {[%emt 0:00:42] White is slightly better.} Nfd7 {[%emt 0:00:13]} 10. h4 $5 {[%emt 0:05:10][%mdl 4] Leaves trodden paths.} Be7 {[%emt 0:03:53]} 11. g5 {[%emt 0:00:17]} Nc5 {[%emt 0:00:44]} (11... Nc6 $14) 12. f4 {[%emt 0:03:39][%cal Bf2f4,Bf4f5][%mdl 32] White is more active.} Nbd7 {[%emt 0:00:09] [#]} 13. Qe2 $146 {[%emt 0:03:02]} ({Predecessor:} 13. Qh5 g6 14. Qe2 e5 15. Nf5 gxf5 16. exf5 Bxg2 17. Qxg2 Na4 18. Nd5 Nxb2 19. f6 {0-1 (31) Anata,C (2084)-Md Masum,H (2086) Dhaka 2018}) 13... g6 {[%emt 0:06:40]} (13... O-O $16 {keeps fighting.}) 14. O-O-O $18 {[%emt 0:01:51]} Qc7 {[%emt 0:00:20]} 15. Rh3 {[%emt 0:02:41]} Nb6 {[%emt 0:02:30]} 16. h5 {[%emt 0:01:06] Black must now prevent hxg6.} O-O-O {[%emt 0:00:33]} 17. f5 {[%emt 0:04:35]} e5 {[%emt 0:01:58]} (17... gxf5 $16 18. exf5 d5) 18. f6 {[%emt 0:01:05]} exd4 {[%emt 0:00:04]} 19. fxe7 {[%emt 0:00:00]} Qxe7 {[%emt 0:00:01]} 20. Bxd4 {[%emt 0:01:03] Threatens to win with Bf6.} ({Resist} 20. Rxd4 Kb8 $16) 20... Qxg5+ {[%emt 0:00:05]} 21. Kb1 {[%emt 0:00:01] Hoping for Qf2.} Rhf8 {[%emt 0:01:27]} (21... Rhe8 $142 22. hxg6 hxg6) 22. hxg6 {[%emt 0:00:25]} hxg6 {[%emt 0:00:04]} 23. Qf2 {[%emt 0:00:27]} Nbd7 {[%emt 0:00:42] Prevents Bf6.} 24. Nd5 {[%emt 0:00:10]} (24. Bg7 $1 $18) 24... Bxd5 $4 {[%emt 0:00:09][%mdl 8192]} (24... Qg4 $16 25. Qg1 Bxd5 26. exd5 Rfe8) 25. exd5 $2 {[%emt 0:00:02]} (25. Bxc5 $18 {and the rest is easy.} dxc5 26. Rxd5 (26. exd5 Qg4 $16)) 25... Kb7 {[%emt 0:00:08]} (25... Kb8 $16) 26. Rh7 {[%emt 0:00:28]} (26. Rc3 $18 {has better winning chances.}) 26... Rc8 {[%emt 0:01:15]} (26... Rde8 $142) 27. Bh3 {[%emt 0:00:39] Bxc5 is the strong threat.} (27. Rxf7 $2 Rxf7 28. Qxf7 Qxg2 $19) 27... Rc7 {[%emt 0:00:07]} (27... Qxd5 $2 28. Qf1 $18) 28. Rxf7 $2 {[%emt 0:00:14][%mdl 8192]} (28. Re1 $1 $16) 28... Qh5 $1 $17 {[%emt 0:01:11]} (28... Ne4 $2 29. Bxd7 $1 Nxf2 30. Bc6+ Kb8 31. Rxf8+ Rc8 32. Rxf2 $18) 29. Rh1 {[%emt 0:00:02]} Rxf7 {[%emt 0:00:20]} ({Black should play} 29... Ne4 $17 30. Rxf8 (30. Qf4 g5 $17) 30... Nxf2 31. Rxf2 Qh4) 30. Qxf7 $11 {[%emt 0:00:01] The position is equal.} Ne5 {[%emt 0:00:01]} 31. Qf8 {[%emt 0:00:46] aiming for Bxc5.} Ne4 {[%emt 0:01:14]} 32. Bg2 {[%emt 0:00:19][%csl LRe4,LRh5] A strong pair of Bishops.} Qe2 {[%emt 0:00:05][%csl LRc2,LRg2] And now ...Nd7 would win.} (32... Qg4 $2 {[#]} 33. Rh8 $1 Rc8 34. Qe7+ Qd7 35. Qxd7+ Nxd7 36. Rxc8 Kxc8 37. Bxe4 $18) 33. Rh8 {[%emt 0:00:11][%csl Gh8][%cal Rf8b8] Dancing on a razor blade.} Qxc2+ {[%emt 0:01:39]} 34. Ka1 {[%emt 0:00:06][%csl Gh8][%cal Rf8a8]} Qc1+ {[%emt 0:00:19]} 35. Ka2 {[%emt 0:00:01][%csl Gh8][%cal Rf8a8]} Qc4+ {[%emt 0:00:09]} 36. Ka1 {[%emt 0:00:01] Weighted Error Value: White=0.53/Black=0.34} 1/2-1/2

[Event "Super United Croatia GCT Rapid 2022"]
[Site "Zagreb"]
[Date "2022.07.21"]
[Round "5.4"]
[White "So, Wesley"]
[Black "Nepomniachtchi, Ian"]
[Result "1/2-1/2"]
[ECO "E04"]
[WhiteElo "2773"]
[BlackElo "2766"]
[Annotator "TA"]
[PlyCount "156"]
[EventDate "2022.07.20"]
[EventType "tourn"]
[EventCountry "CRO"]
[SourceTitle "playchess.com"]
[Source "ChessBase"]
[SourceQuality "1"]
[TimeControl "1500+10"]

{[%evp 23,155,21,20,16,14,5,8,0,0,0,6,-9,-11,-67,-53,-81,-81,-81,-81,-81,-59,-60,-62,-62,-63,-63,-61,-65,-20,-81,-81,-81,-81,-81,-81,-81,-81,-86,-39,-39,-39,-39,-39,-39,-39,-39,-39,-39,-39,-39,-39,-39,0,0,0,0,0,0,0,-7,-7,-7,-7,-7,-7,-8,0,0,0,0,0,-8,-1,-8,0,-8,-8,-8,-8,-12,0,0,0,-8,0,0,0,0,0,0,0,0,0,0,0,0,0,0,0,0,0,0,0,0,0,0,0,0,0,0,0,0,0,0,0,0,0,0,0,0,0,0,0,0,0,0,0,0,0,0,0,0,0,0]} 1. d4 {[%emt 0:00:02]} Nf6 {[%emt 0:00:02]} 2. c4 {[%emt 0:00:04]} e6 {[%emt 0:00:01]} 3. g3 {[%emt 0:00:16]} d5 {[%emt 0:00:03]} 4. Bg2 {[%emt 0:00:02]} dxc4 {[%emt 0:00:06]} 5. Nf3 {[%emt 0:00:06]} c5 {[%emt 0:00:01]} 6. O-O {[%emt 0:00:06]} Nc6 {[%emt 0:00:06]} 7. dxc5 {[%emt 0:00:05]} Qxd1 {[%emt 0:00:04]} 8. Rxd1 {[%emt 0:00:02]} Bxc5 {[%emt 0:00:02]} 9. Nbd2 {[%emt 0:00:02]} c3 {[%emt 0:00:01]} 10. bxc3 {[%emt 0:00:02]} O-O {[%emt 0:00:05]} 11. Nb3 {[%emt 0:00:03]} Be7 {[%emt 0:00:02]} 12. c4 {[%emt 0:00:03]} Bd7 {[%emt 0:00:04]} 13. Bb2 {[%emt 0:00:02] E04: Open Catalan: 5 Nf3.} Rfc8 $1 {[%emt 0:00:02][%cal Bf8c8,Bc8c6,Bc6c5,Bc5a5,Ba5a2,Ba2e2,Be2d2][%mdl 4] [#] is recently more successful than 13...Rfd8.} 14. Ne5 $146 {[%emt 0:02:27]} ({Predecessor:} 14. c5 Be8 15. Nfd2 b6 16. cxb6 axb6 17. Nc4 Rab8 18. Nd6 Bxd6 19. Rxd6 Na5 20. Nxa5 bxa5 {½-½ (42) Santos Latasa,J (2675)-Anand,V (2756) Leon 2022}) 14... Nxe5 {[%emt 0:00:42]} 15. Bxe5 {[%emt 0:00:02]} Bc6 {[%emt 0:00:01]} 16. Rac1 {[%emt 0:01:40]} Kf8 {[%emt 0:01:02]} 17. Bxc6 {[%emt 0:00:24]} Rxc6 {[%emt 0:00:09]} 18. Na5 {[%emt 0:00:18]} ({Better is} 18. Bxf6 $11 Bxf6 19. Rd7) 18... Rc5 $15 {[%emt 0:00:13][%csl LRa5,LRe5]} 19. Bxf6 {[%emt 0:05:41]} Rxa5 {[%emt 0:00:42]} 20. Bc3 {[%emt 0:00:06]} Rxa2 {[%emt 0:01:01]} 21. Rd7 {[%emt 0:00:03]} Rxe2 {[%emt 0:02:33] Threatens to win with ...b6.} 22. Rxb7 {[%emt 0:00:55]} Bc5 {[%emt 0:01:47]} 23. Bb4 {[%emt 0:00:05]} Bxb4 {[%emt 0:00:41]} 24. Rxb4 {[%emt 0:00:01][%mdl 4096] Endgame KRR-KRR} Rd2 {[%emt 0:03:56]} 25. Rb7 {[%emt 0:00:33]} Rd6 {[%emt 0:00:13]} 26. c5 {[%emt 0:01:44] [#]} (26. Rc3 $11 {keeps the balance.}) 26... Rc6 $1 $17 {[%emt 0:00:02]} 27. Rc3 {[%emt 0:04:42]} Rac8 {[%emt 0:01:32]} 28. Rxa7 {[%emt 0:00:10]} Rxc5 {[%emt 0:00:03]} 29. Rxc5 {[%emt 0:00:04]} Rxc5 {[%emt 0:00:02] KR-KR} 30. h4 {[%emt 0:00:05]} g5 {[%emt 0:00:34]} (30... Rb5 $17) 31. hxg5 $15 {[%emt 0:00:05]} Rxg5 {[%emt 0:00:02]} 32. Kg2 {[%emt 0:00:09]} Kg7 {[%emt 0:00:04]} 33. Kh3 {[%emt 0:01:17]} Rf5 {[%emt 0:00:05]} 34. f4 {[%emt 0:00:11]} Rb5 {[%emt 0:00:24]} 35. Ra8 {[%emt 0:00:21]} Rb7 {[%emt 0:00:13]} 36. Re8 {[%emt 0:00:14]} Rb6 {[%emt 0:00:13]} 37. Kg4 {[%emt 0:00:14]} f6 {[%emt 0:00:17]} 38. Kh4 {[%emt 0:01:31] The position is equal.} Kf7 {[%emt 0:00:10]} 39. Rh8 {[%emt 0:00:05]} Kg6 {[%emt 0:00:02]} 40. Kg4 {[%emt 0:01:23]} Rb7 {[%emt 0:00:16]} 41. Rg8+ {[%emt 0:00:27]} Rg7 {[%emt 0:02:07]} 42. Rh8 {[%emt 0:00:07]} Re7 {[%emt 0:00:16]} 43. Rg8+ {[%emt 0:00:12]} Kf7 {[%emt 0:00:02]} 44. Ra8 {[%emt 0:00:16]} Rd7 {[%emt 0:00:15]} 45. Rh8 {[%emt 0:00:05]} Kg7 {[%emt 0:00:17]} 46. Re8 {[%emt 0:00:03]} Rd6 {[%emt 0:00:01]} 47. Ra8 {[%emt 0:01:12]} Rd5 {[%emt 0:00:07]} 48. Re8 {[%emt 0:00:16]} Rd6 {[%emt 0:00:02]} 49. Ra8 {[%emt 0:00:02]} Rd1 {[%emt 0:00:01]} 50. Re8 {[%emt 0:00:09]} Kf7 {[%emt 0:00:24]} 51. Rh8 {[%emt 0:00:04]} Rh1 {[%emt 0:00:02]} 52. Kf3 {[%emt 0:00:09]} Rh2 {[%emt 0:00:03]} 53. Ra8 {[%emt 0:00:08]} h5 {[%emt 0:00:17]} 54. Ra7+ {[%emt 0:00:26]} Kg6 {[%emt 0:00:02]} 55. Re7 {[%emt 0:00:24]} Kf5 {[%emt 0:00:05]} 56. Rh7 {[%emt 0:00:11]} Kg6 {[%emt 0:01:26]} 57. Re7 {[%emt 0:00:02]} h4 {[%emt 0:00:28]} 58. Rxe6 {[%emt 0:01:05]} Rh3 {[%emt 0:00:18]} 59. Kg4 {[%emt 0:00:24][%csl LRh3,LRh4] [#] White threatens f5+ and mate.} Rxg3+ {[%emt 0:00:02]} 60. Kxh4 {[%emt 0:00:02]} Rg1 {[%emt 0:00:02]} 61. Kh3 {[%emt 0:00:11]} Kf5 {[%emt 0:00:02][%csl LRe6,LRf4]} 62. Ra6 $1 {[%emt 0:00:02]} Rg6 {[%emt 0:00:03]} 63. Ra4 {[%emt 0:00:03]} Rg8 {[%emt 0:00:08]} 64. Rb4 {[%emt 0:00:12]} Re8 {[%emt 0:00:04]} 65. Kg3 {[%emt 0:00:04]} Re3+ {[%emt 0:00:02]} 66. Kf2 {[%emt 0:00:02]} Re4 {[%emt 0:00:02]} 67. Rxe4 {[%emt 0:00:02]} Kxe4 $11 {[%emt 0:00:02] KP-KP} 68. f5 {[%emt 0:00:02]} Kf4 {[%emt 0:00:04]} (68... Kxf5 $5 69. Kf3 Kg6 $11) 69. Ke2 {[%emt 0:00:01]} Kxf5 {[%emt 0:00:02] KP-K} 70. Kf3 {[%emt 0:00:02]} Ke5 {[%emt 0:00:01][%cal Bf5e5,Be5e4,Be4f4,Bf4g3,Bg3f3][%mdl 32]} 71. Ke3 {[%emt 0:00:01]} f5 {[%emt 0:00:01][%cal Bf6f5,Bf5f4,Bf4f3,Bf3f2][%mdl 32]} 72. Kf3 {[%emt 0:00:01][%cal Be3f3,Bf3f2,Bf2e2][%mdl 32]} f4 {[%emt 0:00:01]} 73. Kf2 {[%emt 0:00:01]} Ke4 {[%emt 0:00:01]} 74. Ke2 {[%emt 0:00:01]} f3+ {[%emt 0:00:01]} 75. Kf2 {[%emt 0:00:02]} Kf4 {[%emt 0:00:01]} 76. Kf1 {[%emt 0:00:05]} Kg3 {[%emt 0:00:01] ( -> ...f2)} 77. Kg1 {[%emt 0:00:02]} f2+ {[%emt 0:00:01]} 78. Kf1 {[%emt 0:00:01]} Kf3 {[%emt 0:00:07] Weighted Error Value: White=0.05 (flawless) /Black=0.05 (flawless)} 1/2-1/2

[Event "Super United Croatia GCT Rapid 2022"]
[Site "Zagreb"]
[Date "2022.07.21"]
[Round "5.5"]
[White "Van Foreest, Jorden"]
[Black "Saric, Ivan"]
[Result "1/2-1/2"]
[ECO "B52"]
[WhiteElo "2678"]
[BlackElo "2680"]
[Annotator "ChessBase"]
[PlyCount "53"]
[EventDate "2022.07.20"]
[EventType "tourn"]
[EventCountry "CRO"]
[SourceTitle "playchess.com"]
[Source "ChessBase"]
[SourceQuality "1"]
[TimeControl "1500+10"]

1. e4 {[%emt 0:00:03]} c5 {[%emt 0:00:01]} 2. Nf3 {[%emt 0:00:03]} d6 {[%emt 0:00:02]} 3. Bb5+ {[%emt 0:00:05]} Bd7 {[%emt 0:00:07]} 4. Be2 {[%emt 0:00:04]} Nf6 {[%emt 0:00:31]} 5. Nc3 {[%emt 0:00:02]} Nc6 {[%emt 0:00:09]} 6. d4 {[%emt 0:00:03]} cxd4 {[%emt 0:00:01]} 7. Nxd4 {[%emt 0:00:03]} g6 {[%emt 0:00:23]} 8. Be3 {[%emt 0:00:02]} Bg7 {[%emt 0:00:08]} 9. Qd2 {[%emt 0:00:02]} Nxd4 {[%emt 0:00:45]} 10. Bxd4 {[%emt 0:00:03]} Bc6 {[%emt 0:00:35]} 11. O-O-O {[%emt 0:00:51]} O-O {[%emt 0:02:21]} 12. f3 {[%emt 0:00:25]} Qa5 {[%emt 0:00:32]} 13. Kb1 {[%emt 0:00:47]} Rfc8 {[%emt 0:02:25]} 14. g4 {[%emt 0:00:58]} Rab8 {[%emt 0:01:14]} 15. g5 {[%emt 0:01:22]} Nh5 {[%emt 0:00:31]} 16. Bxg7 {[%emt 0:00:10]} Nxg7 {[%emt 0:00:19]} 17. f4 {[%emt 0:03:53]} b5 {[%emt 0:00:36]} 18. h4 {[%emt 0:00:18]} b4 {[%emt 0:00:01]} 19. Nd5 {[%emt 0:00:02]} Bxd5 {[%emt 0:00:01]} 20. exd5 {[%emt 0:00:42]} Rc3 {[%emt 0:01:04]} 21. h5 {[%emt 0:00:40]} gxh5 {[%emt 0:02:13]} 22. Bxh5 {[%emt 0:02:52]} Nxh5 {[%emt 0:02:28]} 23. Rxh5 {[%emt 0:02:01]} Ra3 {[%emt 0:01:07]} 24. Kc1 {[%emt 0:02:30]} Rc3 {[%emt 0:01:58]} 25. Kb1 {[%emt 0:06:39]} Ra3 {[%emt 0:00:03]} 26. Kc1 {[%emt 0:00:05]} Rc3 {[%emt 0:00:55]} 27. Kb1 {[%emt 0:00:02]} 1/2-1/2

[Event "Super United Croatia GCT Rapid 2022"]
[Site "Zagreb"]
[Date "2022.07.21"]
[Round "6.1"]
[White "Vachier-Lagrave, Maxime"]
[Black "Saric, Ivan"]
[Result "1/2-1/2"]
[ECO "B52"]
[WhiteElo "2760"]
[BlackElo "2680"]
[Annotator "TA"]
[PlyCount "80"]
[EventDate "2022.07.20"]
[EventType "tourn"]
[EventCountry "CRO"]
[SourceTitle "playchess.com"]
[Source "ChessBase"]
[SourceQuality "1"]
[TimeControl "1500+10"]

{[%evp 16,80,4,7,17,0,0,0,2,0,0,0,0,0,0,0,0,0,0,0,2,9,0,-3,-4,-10,0,-2,0,-7,0,0,0,0,1,0,0,0,0,0,0,0,2,2,4,0,0,0,0,0,0,0,0,0,0,0,0,0,0,0,0,0,0,0,0,0,0]} 1. e4 {[%emt 0:00:01]} c5 {[%emt 0:00:01]} 2. Nf3 {[%emt 0:00:02]} d6 {[%emt 0:00:01]} 3. Bb5+ {[%emt 0:00:36]} Bd7 {[%emt 0:00:03]} 4. Bxd7+ {[%emt 0:00:03]} Qxd7 {[%emt 0:00:07]} 5. O-O {[%emt 0:00:06]} Nc6 {[%emt 0:00:13]} 6. c3 {[%emt 0:00:41]} d5 {[%emt 0:00:25]} 7. exd5 {[%emt 0:00:01]} Qxd5 {[%emt 0:00:01]} 8. d4 {[%emt 0:00:01]} e6 {[%emt 0:00:14]} 9. Be3 {[%emt 0:00:03] The position is equal.} cxd4 {[%emt 0:00:26] B52: Sicilian: Moscow Variation with 3...Bd7.} 10. cxd4 {[%emt 0:00:48]} Nf6 {[%emt 0:00:12]} 11. Nc3 {[%emt 0:00:01]} Qa5 {[%emt 0:01:26]} 12. Qb3 {[%emt 0:01:53]} Qb4 {[%emt 0:00:25]} 13. Qc2 {[%emt 0:00:02][%cal Od4d5]} Be7 {[%emt 0:00:25] [#]} 14. Rad1 $146 {[%emt 0:00:39][%cal Ba1d1,Bd1d5,Bd5b5][%mdl 32]} ({Predecessor:} 14. a3 Qd6 15. Rfd1 h6 16. Qb3 O-O 17. Rac1 a6 18. Ne5 Qc7 19. Na4 Nd5 20. Nxc6 bxc6 {½-½ (26) Wharrier,J (2364)-Jimenez Ariza,J (2365) ICCF email 2014}) 14... O-O {[%emt 0:01:20]} 15. d5 {[%emt 0:00:04]} Nxd5 {[%emt 0:00:29]} 16. Nxd5 {[%emt 0:00:05]} exd5 {[%emt 0:00:01]} 17. Rxd5 {[%emt 0:00:01]} Rad8 {[%emt 0:01:13]} 18. a3 {[%emt 0:01:27]} Qg4 {[%emt 0:00:01] Prevents Rh5.} 19. Rb5 {[%emt 0:00:04]} Qd7 {[%emt 0:01:06]} 20. Rc1 {[%emt 0:01:57]} Bf6 {[%emt 0:01:40][%cal Ob7b6]} 21. Rc5 {[%emt 0:01:37]} Rfe8 {[%emt 0:00:52]} 22. h3 {[%emt 0:00:23]} h6 {[%emt 0:00:20]} 23. b4 {[%emt 0:00:36]} a6 {[%emt 0:00:04]} 24. Qb3 {[%emt 0:01:43]} Qd3 {[%emt 0:01:12]} 25. Qxd3 {[%emt 0:00:34]} Rxd3 {[%emt 0:00:02]} 26. b5 {[%emt 0:00:04]} axb5 {[%emt 0:00:09]} 27. Rxb5 {[%emt 0:00:02]} Rxa3 {[%emt 0:00:12]} 28. Rxb7 {[%emt 0:00:01]} Ra1 {[%emt 0:00:54]} 29. Rxa1 {[%emt 0:00:04]} Bxa1 {[%emt 0:00:01]} 30. g4 {[%emt 0:00:07]} Ne5 {[%emt 0:00:15]} 31. Nxe5 {[%emt 0:00:01]} Bxe5 $11 {[%emt 0:00:02][%mdl 4096] Endgame KRB-KRB} 32. Kg2 {[%emt 0:00:02]} Bf6 {[%emt 0:00:07]} 33. Kg1 {[%emt 0:00:02]} Bg5 {[%emt 0:00:13]} 34. Bxg5 {[%emt 0:00:01]} hxg5 {[%emt 0:00:01] KR-KR} 35. Kg2 {[%emt 0:00:02]} Rd8 {[%emt 0:00:01]} 36. Rb5 {[%emt 0:00:01]} f6 {[%emt 0:00:01]} 37. Rb7 {[%emt 0:00:01]} Re8 {[%emt 0:00:02]} 38. Rb5 {[%emt 0:00:02]} Rd8 {[%emt 0:00:01]} 39. Rb7 {[%emt 0:00:01]} Re8 {[%emt 0:00:00]} 40. Rb5 {[%emt 0:00:01]} Rd8 {A balanced but interesting game.  Weighted Error Value: White=0.01 (flawless) /Black=0.01 (flawless)} 1/2-1/2

[Event "Super United Croatia GCT Rapid 2022"]
[Site "Zagreb"]
[Date "2022.07.21"]
[Round "6.2"]
[White "Nepomniachtchi, Ian"]
[Black "Van Foreest, Jorden"]
[Result "0-1"]
[ECO "C54"]
[WhiteElo "2766"]
[BlackElo "2678"]
[Annotator "TA"]
[PlyCount "56"]
[EventDate "2022.07.20"]
[EventType "tourn"]
[EventCountry "CRO"]
[SourceTitle "playchess.com"]
[Source "ChessBase"]
[SourceQuality "1"]
[TimeControl "1500+10"]

{[%evp 14,56,22,34,50,34,22,9,38,0,0,0,0,0,0,0,1,-16,-19,-23,-33,-62,-66,-99,-65,-99,-95,-82,-79,-137,-143,-202,-225,-422,-418,-404,-402,-838,-746,-1544,-1420,-1300,-1055,-5585,-5561]} 1. e4 {[%emt 0:00:02]} e5 {[%emt 0:00:03]} 2. Nf3 {[%emt 0:00:04]} Nc6 {[%emt 0:00:02]} 3. Bc4 {[%emt 0:00:01]} Nf6 {[%emt 0:00:12]} 4. d3 {[%emt 0:00:02]} Bc5 {[%emt 0:00:06]} 5. O-O {[%emt 0:00:03]} O-O {[%emt 0:00:12]} 6. c3 {[%emt 0:00:03]} d5 {[%emt 0:00:03]} 7. exd5 {[%emt 0:00:02]} Nxd5 {[%emt 0:00:02]} 8. Re1 {[%emt 0:00:09]} Be6 {[%emt 0:00:20] C54: Giuoco Piano: 4 c3 Nf6, main lines with 5 d4 and 5 d3.} 9. a4 {[%emt 0:00:55] [#]} Bb6 $146 {[%emt 0:00:06]} ({Predecessor:} 9... a6 10. Nbd2 Nf4 11. Ne4 Bxc4 12. dxc4 Bb6 13. Bxf4 exf4 14. Qc2 Re8 15. Rad1 Qe7 16. Neg5 h6 17. Qh7+ Kf8 18. Qh8# {1-0 (18) Zienkiewicz,J (1882)-Raujol,P Europe Echecs INT 2021}) 10. Na3 {[%emt 0:01:06]} h6 {[%emt 0:01:00] The position is equal.} 11. Bb3 {[%emt 0:00:24]} Re8 $1 {[%emt 0:01:03]} 12. Nc4 {[%emt 0:00:10]} Nf6 {[%emt 0:00:29][%cal Oe5e4]} 13. Be3 {[%emt 0:01:03]} Bxe3 {[%emt 0:00:31]} 14. Rxe3 {[%emt 0:00:03]} Nd5 {[%emt 0:01:01]} 15. Re1 {[%emt 0:02:05]} Nf4 $1 {[%emt 0:00:46]} 16. Re3 {[%emt 0:05:30]} Qf6 {[%emt 0:00:21]} 17. Nfd2 {[%emt 0:01:30]} Rad8 {[%emt 0:00:35]} 18. Bc2 {[%emt 0:00:19]} Bd5 {[%emt 0:01:46]} 19. Rg3 {[%emt 0:01:08]} Ne7 {[%emt 0:00:35]} 20. Ne3 {[%emt 0:00:06]} Nf5 {[%emt 0:00:05] Black is much more active.} 21. Nxf5 {[%emt 0:02:27]} (21. Nxd5 $142 Rxd5 22. Ne4) 21... Qxf5 $17 {[%emt 0:00:02]} 22. c4 {[%emt 0:00:18]} (22. Qf1 $17 {was worth a try.}) 22... Bxg2 $19 {[%emt 0:01:23] [#] White must now prevent ...e4.} 23. Rxg2 $2 {[%emt 0:01:15]} (23. d4 Qf6 24. d5) 23... Nxg2 {[%emt 0:00:02]} 24. Kxg2 {[%emt 0:00:02]} e4 {[%emt 0:00:02][%cal Be5e4,Be4d3][%mdl 32]} 25. Bb1 {[%emt 0:05:32]} (25. Nxe4 $142 Rxe4 26. dxe4 Rxd1 27. Rxd1 Qg5+ 28. Kf3) 25... exd3 {[%emt 0:00:25] Threatens to win with ...Re2. Black is clearly winning.} 26. h3 {[%emt 0:00:52]} Qg5+ {[%emt 0:00:49]} ({Inferior is} 26... Re2 27. Qxe2 Qxh3+ 28. Kxh3 $11) 27. Kf1 {[%emt 0:00:19]} Re2 {[%emt 0:00:03] [#] ( -> ...Qf4)} 28. Nf3 {[%emt 0:00:01]} Qc5 {[%emt 0:00:02] Weighted Error Value: White=0.95/Black=0.20 (precise)} 0-1

[Event "Super United Croatia GCT Rapid 2022"]
[Site "Zagreb"]
[Date "2022.07.21"]
[Round "6.3"]
[White "Topalov, Veselin"]
[Black "So, Wesley"]
[Result "1/2-1/2"]
[ECO "A20"]
[WhiteElo "2728"]
[BlackElo "2773"]
[Annotator "TA"]
[PlyCount "74"]
[EventDate "2022.07.20"]
[EventType "tourn"]
[EventCountry "CRO"]
[SourceTitle "playchess.com"]
[Source "ChessBase"]
[SourceQuality "1"]
[TimeControl "1500+10"]

{[%evp 9,74,0,0,0,1,7,5,0,25,20,37,20,31,32,28,38,24,18,56,62,56,45,83,33,27,27,29,43,41,49,50,27,31,20,18,25,42,38,33,19,18,12,11,0,0,0,0,0,14,8,7,8,16,0,0,0,0,0,0,-13,0,0,0,-1,0,0,0]} 1. c4 {[%emt 0:00:02]} e5 {[%emt 0:00:10]} 2. d3 {[%emt 0:00:02]} Nf6 {[%emt 0:00:02]} (2... Nc6 3. a3 g6 4. b4 Bg7 5. Bb2 d6 6. Nf3 f5 7. e3 Nf6 8. Be2 O-O 9. Nc3 Ne7 10. d4 e4 11. Nd2 d5 12. b5 Be6 13. a4 Rf7 14. O-O g5 15. Ba3 {½-½ (30) Topalov,V (2740)-So,W (2754) Abidjan 2019}) 3. Nf3 {[%emt 0:00:02]} Nc6 {[%emt 0:00:03]} 4. a3 {[%emt 0:00:05]} g6 {[%emt 0:00:36]} 5. b4 {[%emt 0:00:32]} Bg7 {[%emt 0:01:49]} 6. Bb2 {[%emt 0:00:02] A20: English Opening: 1...e5.} d6 {[%emt 0:00:08]} 7. e3 {[%emt 0:00:12]} O-O {[%emt 0:00:05]} 8. Be2 {[%emt 0:00:02]} h6 {[%emt 0:00:44] [#]} 9. O-O $146 {[%emt 0:00:27]} ({Predecessor:} 9. Nc3 g5 10. O-O g4 11. Nd2 h5 12. Re1 Nh7 13. Bf1 h4 14. Nd5 f5 15. d4 {0-1 (40) Debashis,D (2544)-Mikalsen,E (2357) Stockholm 2018}) 9... Nh7 {[%emt 0:03:08]} 10. Nc3 {[%emt 0:05:27]} g5 {[%emt 0:00:00]} 11. b5 {[%emt 0:00:40]} Ne7 {[%emt 0:00:00]} 12. d4 {[%emt 0:00:06]} g4 {[%emt 0:00:00]} 13. Ne1 {[%emt 0:00:59]} f5 {[%emt 0:02:39]} 14. dxe5 {[%emt 0:00:02]} dxe5 {[%emt 0:00:02]} 15. a4 {[%emt 0:01:14]} Be6 {[%emt 0:00:47]} 16. e4 {[%emt 0:02:02]} (16. Nd3 $16) 16... Ng5 $14 {[%emt 0:02:03]} 17. Ba3 {[%emt 0:00:29]} Rf7 {[%emt 0:03:03]} 18. Bxe7 {[%emt 0:00:20]} Rxe7 {[%emt 0:00:00]} 19. exf5 {[%emt 0:02:52]} Qxd1 {[%emt 0:00:00]} 20. Rxd1 {[%emt 0:00:01]} Bxf5 {[%emt 0:00:00]} 21. Nd5 {[%emt 0:00:06]} Rf7 {[%emt 0:00:00]} 22. Ne3 {[%emt 0:00:23]} h5 {[%emt 0:00:00]} 23. Nxf5 {[%emt 0:00:08]} Rxf5 {[%emt 0:00:00]} 24. Nc2 {[%emt 0:04:01][%cal Be1c2,Bc2e3,Be3d5,Bd5c3,Bc3e4][%mdl 32]} Bf8 {[%emt 0:03:22][%cal Bg7f8,Bf8c5,Bc5d4][%mdl 32] The position is equal.} 25. Ne3 {[%emt 0:00:00]} Rf6 {[%emt 0:00:08]} 26. Nd5 {[%emt 0:01:34]} Rf7 {[%emt 0:00:08]} 27. h4 {[%emt 0:00:07]} Ne6 {[%emt 0:03:06]} 28. Nc3 {[%emt 0:03:07]} Bc5 {[%emt 0:01:27]} 29. Ne4 {[%emt 0:00:00]} Bd4 {[%emt 0:00:18]} 30. g3 {[%emt 0:00:12][%cal Oc4c5]} a6 {[%emt 0:00:26]} 31. c5 {[%emt 0:00:11] Threatens to win with Bc4.} axb5 {[%emt 0:00:00]} ({Don't do} 31... Nxc5 32. Rxd4 $1 exd4 33. Nxc5 axb5 34. axb5 $16) 32. Bxb5 {[%emt 0:00:25] Bc4 is the strong threat.} Kg7 {[%emt 0:00:22]} ({Resist} 32... Nxc5 {[#]} 33. Rxd4 $1 exd4 34. Nxc5 $16) (32... Bxc5 $2 33. Bc4 Re8 34. Bxe6 Rxe6 35. Nxc5 $18) 33. c6 {[%emt 0:00:06]} b6 {[%emt 0:00:07]} 34. Bc4 {[%emt 0:00:50]} Re7 {[%emt 0:00:01]} 35. Bb5 {[%emt 0:00:00]} Rf7 {[%emt 0:00:07]} 36. Bc4 {[%emt 0:00:01]} Re7 {[%emt 0:00:04]} 37. Bb5 {[%emt 0:00:02]} Rf7 {[%emt 0:02:20] Weighted Error Value: White=0.04 (flawless) /Black=0.06 (flawless)} 1/2-1/2